fUST/lending_fUST_20250518
["ID","MTS","AMOUNT","RATE_DAILY","PERIOD"]
[361376365,1747528234083,-450.0,0.00013698,2]
[361376366,1747528234092,-450.0,0.00013698,2]
[361376367,1747528234101,-450.0,0.00013698,2]
[361376368,1747528234111,-450.0,0.00013698,2]
[361376369,1747528234120,-450.0,0.00013698,2]
[361376370,1747528234130,-400.0,0.00013698,2]
[361376371,1747528234140,-450.0,0.00013698,2]
[361376372,1747528234149,-450.0,0.00013698,2]
[361376373,1747528234159,-486.19,0.00013698,2]
[361376374,1747528234168,-450.0,0.00013698,2]
[361376375,1747528234178,-450.0,0.00013698,2]
[361376376,1747528234187,-450.0,0.00013698,2]
[361376377,1747528234197,-450.0,0.00013698,2]
[361376378,1747528234207,-450.0,0.00013698,2]
[361376379,1747528234217,-559.77,0.00013698,2]
[361376380,1747528234227,-400.0,0.00013698,2]
[361376381,1747528234236,-450.0,0.00013698,2]
[361376382,1747528234246,-450.0,0.00013698,2]
[361376383,1747528234256,-450.0,0.00013698,2]
[361376384,1747528234267,-450.0,0.00013698,2]
[361376385,1747528234283,-2290.52430106,0.00013698,2]
[361376405,1747528237501,-186.47961007,0.00013695,2]
[361376407,1747528237510,-5062.05676114,0.00013698,2]
[361376413,1747528237559,-2739.2089378,0.00013698,2]
[361376415,1747528237568,-450.0,0.00013698,2]
[361376417,1747528237577,-450.0,0.00013698,2]
[361376419,1747528237586,-1061.83987614,0.00013698,2]
[361376421,1747528237597,-1009.13986329,0.00013698,2]
[361376423,1747528237608,-511.09596172,0.00013698,2]
[361376426,1747528237619,-594.98404894,0.00013698,2]
[361376428,1747528237629,-5083.47562967,0.00013698,2]
[361376430,1747528237642,-1831.25462024,0.00013698,2]
[361376432,1747528237651,-2159.69225048,0.00013698,2]
[361376434,1747528237661,-397.89386563,0.00013698,2]
[361376437,1747528237684,-7534.20388389,0.00013698,2]
[361376438,1747528237693,-10091.79,0.00013698,2]
[361376439,1747528237702,-10091.79,0.00013698,2]
[361376440,1747528237711,-4765.02461375,0.00013698,2]
[361376443,1747528237722,-3967.20131492,0.00013698,2]
[361376445,1747528237733,-1359.56407133,0.00013698,2]
[361376447,1747528237742,-2262.20337228,0.00013698,2]
[361376449,1747528237754,-2007.43332918,0.00013698,2]
[361376451,1747528237765,-823.544997,0.00013698,2]
[361376459,1747528237831,-833.8723221,0.00013698,2]
[361376516,1747528239862,-1674.66979795,0.00013698,2]
[361376517,1747528239874,-2490.06618149,0.00013698,2]
[361376518,1747528239883,-10091.79,0.00013698,2]
[361376519,1747528239895,-10091.79,0.00013698,2]
[361376520,1747528239904,-450.0,0.00013698,2]
[361376521,1747528239914,-450.0,0.00013698,2]
[361376522,1747528239924,-450.0,0.00013698,2]
[361376523,1747528239933,-549.29,0.00013698,2]
[361376524,1747528239942,-450.0,0.00013698,2]
[361376525,1747528239951,-492.28,0.00013698,2]
[361376526,1747528239960,-450.0,0.00013698,2]
[361376527,1747528239969,-450.0,0.00013698,2]
[361376528,1747528239979,-450.0,0.00013698,2]
[361376529,1747528239988,-450.0,0.00013698,2]
[361376530,1747528239997,-450.0,0.00013698,2]
[361376531,1747528240006,-450.0,0.00013698,2]
[361376532,1747528240015,-450.0,0.00013698,2]
[361376533,1747528240024,-450.0,0.00013698,2]
[361376534,1747528240033,-450.0,0.00013698,2]
[361376535,1747528240042,-578.95,0.00013698,2]
[361376536,1747528240051,-450.0,0.00013698,2]
[361376537,1747528240060,-450.0,0.00013698,2]
[361376538,1747528240069,-450.0,0.00013698,2]
[361376539,1747528240078,-450.0,0.00013698,2]
[361376540,1747528240087,-450.0,0.00013698,2]
[361376541,1747528240096,-450.0,0.00013698,2]
[361376542,1747528240105,-450.0,0.00013698,2]
[361376543,1747528240114,-484.55,0.00013698,2]
[361376544,1747528240123,-450.0,0.00013698,2]
[361376545,1747528240133,-450.0,0.00013698,2]
[361376546,1747528240145,-450.0,0.00013698,2]
[361376547,1747528240154,-450.0,0.00013698,2]
[361376548,1747528240164,-450.0,0.00013698,2]
[361376549,1747528240173,-450.0,0.00013698,2]
[361376550,1747528240182,-450.0,0.00013698,2]
[361376551,1747528240191,-450.0,0.00013698,2]
[361376552,1747528240200,-464.9,0.00013698,2]
[361376553,1747528240210,-492.82,0.00013698,2]
[361376554,1747528240219,-574.1,0.00013698,2]
[361376555,1747528240228,-450.0,0.00013698,2]
[361376556,1747528240238,-540.65,0.00013698,2]
[361376557,1747528240247,-450.0,0.00013698,2]
[361376558,1747528240256,-450.0,0.00013698,2]
[361376559,1747528240266,-450.0,0.00013698,2]
[361376560,1747528240278,-570.55,0.00013698,2]
[361376561,1747528240287,-450.0,0.00013698,2]
[361376562,1747528240296,-450.0,0.00013698,2]
[361376563,1747528240306,-450.0,0.00013698,2]
[361376564,1747528240315,-450.0,0.00013698,2]
[361376565,1747528240324,-450.0,0.00013698,2]
[361376566,1747528240333,-450.0,0.00013698,2]
[361376567,1747528240343,-450.0,0.00013698,2]
[361376568,1747528240352,-400.0,0.00013698,2]
[361376569,1747528240361,-1677.95,0.00013698,2]
[361376570,1747528240370,-450.0,0.00013698,2]
[361376571,1747528240380,-503.45,0.00013698,2]
[361376572,1747528240390,-450.0,0.00013698,2]
[361376573,1747528240399,-450.0,0.00013698,2]
[361376575,1747528240408,-450.0,0.00013698,2]
[361376577,1747528240418,-450.0,0.00013698,2]
[361376579,1747528240430,-450.0,0.00013698,2]
[361376581,1747528240439,-450.0,0.00013698,2]
[361376583,1747528240449,-450.0,0.00013698,2]
[361376584,1747528240458,-518.37,0.00013698,2]
[361376586,1747528240467,-450.0,0.00013698,2]
[361376587,1747528240477,-450.0,0.00013698,2]
[361376589,1747528240486,-450.0,0.00013698,2]
[361376591,1747528240495,-450.0,0.00013698,2]
[361376593,1747528240505,-450.0,0.00013698,2]
[361376594,1747528240515,-450.0,0.00013698,2]
[361376596,1747528240525,-450.0,0.00013698,2]
[361376598,1747528240534,-450.0,0.00013698,2]
[361376600,1747528240543,-450.0,0.00013698,2]
[361376601,1747528240552,-450.0,0.00013698,2]
[361376602,1747528240562,-450.0,0.00013698,2]
[361376603,1747528240571,-450.0,0.00013698,2]
[361376604,1747528240583,-450.0,0.00013698,2]
[361376605,1747528240593,-450.0,0.00013698,2]
[361376606,1747528240602,-450.0,0.00013698,2]
[361376607,1747528240611,-450.0,0.00013698,2]
[361376608,1747528240620,-458.25,0.00013698,2]
[361376609,1747528240629,-450.0,0.00013698,2]
[361376610,1747528240639,-611.12,0.00013698,2]
[361376611,1747528240648,-597.48,0.00013698,2]
[361376612,1747528240657,-450.0,0.00013698,2]
[361376613,1747528240666,-450.0,0.00013698,2]
[361376614,1747528240675,-450.0,0.00013698,2]
[361376615,1747528240684,-450.0,0.00013698,2]
[361376616,1747528240694,-450.0,0.00013698,2]
[361376617,1747528240703,-467.36,0.00013698,2]
[361376618,1747528240711,-450.0,0.00013698,2]
[361376619,1747528240720,-1324.92,0.00013698,2]
[361376620,1747528240729,-450.0,0.00013698,2]
[361376621,1747528240738,-573.24,0.00013698,2]
[361376622,1747528240747,-450.0,0.00013698,2]
[361376623,1747528240756,-769.51,0.00013698,2]
[361376624,1747528240765,-507.45,0.00013698,2]
[361376625,1747528240774,-574.76,0.00013698,2]
[361376626,1747528240783,-450.0,0.00013698,2]
[361376627,1747528240792,-400.0,0.00013698,2]
[361376628,1747528240801,-450.0,0.00013698,2]
[361376629,1747528240812,-450.0,0.00013698,2]
[361376630,1747528240821,-450.0,0.00013698,2]
[361376631,1747528240830,-1008.64,0.00013698,2]
[361376632,1747528240839,-450.0,0.00013698,2]
[361376633,1747528240849,-450.0,0.00013698,2]
[361376634,1747528240858,-450.0,0.00013698,2]
[361376635,1747528240867,-400.0,0.00013698,2]
[361376636,1747528240876,-784.01,0.00013698,2]
[361376637,1747528240886,-450.0,0.00013698,2]
[361376638,1747528240898,-450.0,0.00013698,2]
[361376639,1747528240909,-450.0,0.00013698,2]
[361376640,1747528240919,-588.66,0.00013698,2]
[361376641,1747528240931,-450.0,0.00013698,2]
[361376642,1747528240940,-1515.06,0.00013698,2]
[361376643,1747528240950,-450.0,0.00013698,2]
[361376644,1747528240959,-450.0,0.00013698,2]
[361376645,1747528240969,-554.5,0.00013698,2]
[361376646,1747528240978,-450.0,0.00013698,2]
[361376647,1747528240987,-450.0,0.00013698,2]
[361376648,1747528240998,-400.0,0.00013698,2]
[361376649,1747528241009,-450.0,0.00013698,2]
[361376650,1747528241018,-450.0,0.00013698,2]
[361376651,1747528241027,-450.0,0.00013698,2]
[361376652,1747528241036,-450.0,0.00013698,2]
[361376653,1747528241045,-450.0,0.00013698,2]
[361376654,1747528241054,-450.0,0.00013698,2]
[361376655,1747528241063,-450.0,0.00013698,2]
[361376656,1747528241073,-454.64,0.00013698,2]
[361376657,1747528241082,-450.0,0.00013698,2]
[361376658,1747528241091,-450.0,0.00013698,2]
[361376659,1747528241100,-476.74,0.00013698,2]
[361376660,1747528241109,-551.96,0.00013698,2]
[361376661,1747528241118,-450.0,0.00013698,2]
[361376662,1747528241127,-450.0,0.00013698,2]
[361376663,1747528241137,-450.0,0.00013698,2]
[361376664,1747528241146,-400.0,0.00013698,2]
[361376665,1747528241155,-805.25,0.00013698,2]
[361376666,1747528241165,-561.62,0.00013698,2]
[361376667,1747528241174,-310.05,0.00013698,2]
[361376668,1747528241184,-450.0,0.00013698,2]
[361376669,1747528241195,-500.0,0.00013698,2]
[361376670,1747528241204,-172.920386,0.00013699,2]
[361376671,1747528241213,-10091.79,0.00013834,2]
[361376672,1747528241224,-10091.79,0.00013834,2]
[361376673,1747528241233,-10091.79,0.00013834,2]
[361376674,1747528241242,-181.8,0.00013835,2]
[361376675,1747528241252,-450.0,0.00013835,2]
[361376676,1747528241261,-450.0,0.00013835,2]
[361376677,1747528241272,-349.37,0.00013835,2]
[361376678,1747528241282,-306.45,0.00013835,2]
[361376679,1747528241291,-450.0,0.00013835,2]
[361376680,1747528241300,-450.0,0.00013835,2]
[361376681,1747528241309,-450.0,0.00013835,2]
[361376682,1747528241319,-450.0,0.00013835,2]
[361376683,1747528241328,-450.0,0.00013835,2]
[361376684,1747528241338,-450.0,0.00013835,2]
[361376685,1747528241350,-450.0,0.00013835,2]
[361376686,1747528241360,-450.0,0.00013835,2]
[361376687,1747528241370,-376.81,0.00013835,2]
[361376688,1747528241379,-450.0,0.00013835,2]
[361376689,1747528241389,-450.0,0.00013835,2]
[361376690,1747528241398,-450.0,0.00013835,2]
[361376691,1747528241407,-450.0,0.00013835,2]
[361376692,1747528241416,-450.0,0.00013835,2]
[361376693,1747528241425,-450.0,0.00013835,2]
[361376694,1747528241435,-578.36,0.00013835,2]
[361376695,1747528241444,-450.0,0.00013835,2]
[361376696,1747528241453,-458.36,0.00013835,2]
[361376697,1747528241462,-402.72,0.00013835,2]
[361376698,1747528241471,-450.0,0.00013835,2]
[361376699,1747528241480,-450.0,0.00013835,2]
[361376700,1747528241489,-450.0,0.00013835,2]
[361376701,1747528241498,-228.44,0.00013835,2]
[361376702,1747528241508,-289.27,0.00013835,2]
[361376703,1747528241516,-450.0,0.00013835,2]
[361376704,1747528241525,-450.0,0.00013835,2]
[361376705,1747528241534,-450.0,0.00013835,2]
[361376706,1747528241543,-151.0,0.00013835,2]
[361376707,1747528241552,-357.79,0.00013835,2]
[361376708,1747528241561,-599.48,0.00013835,2]
[361376709,1747528241571,-450.0,0.00013835,2]
[361376710,1747528241579,-398.42,0.00013835,2]
[361376711,1747528241589,-151.0,0.00013835,2]
[361376712,1747528241599,-462.38,0.00013835,2]
[361376713,1747528241611,-186.674992,0.00013835,2]
[361376714,1747528241620,-450.0,0.00013835,2]
[361376715,1747528241630,-450.0,0.00013835,2]
[361376716,1747528241642,-549.29,0.00013835,2]
[361376717,1747528241652,-275.82,0.00013835,2]
[361376718,1747528241661,-180.44,0.00013835,2]
[361376719,1747528241672,-450.0,0.00013835,2]
[361376720,1747528241681,-450.0,0.00013835,2]
[361376721,1747528241692,-450.0,0.00013835,2]
[361376722,1747528241703,-450.47,0.00013835,2]
[361376723,1747528241712,-450.0,0.00013835,2]
[361376724,1747528241722,-450.0,0.00013835,2]
[361376725,1747528241732,-450.0,0.00013835,2]
[361376726,1747528241742,-450.0,0.00013835,2]
[361376727,1747528241752,-450.0,0.00013835,2]
[361376728,1747528241763,-450.0,0.00013835,2]
[361376729,1747528241772,-151.0,0.00013835,2]
[361376730,1747528241784,-450.0,0.00013835,2]
[361376731,1747528241793,-450.0,0.00013835,2]
[361376732,1747528241803,-450.0,0.00013835,2]
[361376733,1747528241813,-151.0,0.00013835,2]
[361376734,1747528241822,-450.0,0.00013835,2]
[361376735,1747528241831,-151.0,0.00013835,2]
[361376736,1747528241841,-293.55,0.00013835,2]
[361376737,1747528241850,-527.96,0.00013835,2]
[361376738,1747528241859,-1677.95,0.00013835,2]
[361376739,1747528241868,-151.0,0.00013835,2]
[361376740,1747528241877,-503.45,0.00013835,2]
[361376741,1747528241886,-243.91,0.00013835,2]
[361376742,1747528241895,-450.0,0.00013835,2]
[361376743,1747528241904,-564.08,0.00013835,2]
[361376744,1747528241913,-252.69,0.00013835,2]
[361376745,1747528241922,-257.05,0.00013835,2]
[361376746,1747528241931,-450.0,0.00013835,2]
[361376747,1747528241941,-450.0,0.00013835,2]
[361376748,1747528241950,-296.16,0.00013835,2]
[361376749,1747528241959,-450.0,0.00013835,2]
[361376750,1747528241968,-189.87,0.00013835,2]
[361376751,1747528241977,-611.12,0.00013835,2]
[361376752,1747528241987,-301.33,0.00013835,2]
[361376753,1747528241995,-450.0,0.00013835,2]
[361376754,1747528242005,-267.14,0.00013835,2]
[361376755,1747528242014,-450.0,0.00013835,2]
[361376756,1747528242023,-450.0,0.00013835,2]
[361376757,1747528242032,-1324.92,0.00013835,2]
[361376758,1747528242041,-151.0,0.00013835,2]
[361376759,1747528242050,-450.0,0.00013835,2]
[361376760,1747528242060,-769.51,0.00013835,2]
[361376761,1747528242069,-507.45,0.00013835,2]
[361376762,1747528242078,-574.76,0.00013835,2]
[361376763,1747528242087,-151.0,0.00013835,2]
[361376764,1747528242096,-450.0,0.00013835,2]
[361376765,1747528242105,-189.56,0.00013835,2]
[361376766,1747528242114,-1008.64,0.00013835,2]
[361376767,1747528242123,-450.0,0.00013835,2]
[361376768,1747528242132,-450.0,0.00013835,2]
[361376769,1747528242143,-784.01,0.00013835,2]
[361376770,1747528242153,-450.0,0.00013835,2]
[361376771,1747528242162,-588.66,0.00013835,2]
[361376772,1747528242171,-1515.06,0.00013835,2]
[361376773,1747528242181,-469.11,0.00013835,2]
[361376774,1747528242190,-450.0,0.00013835,2]
[361376775,1747528242199,-151.0,0.00013835,2]
[361376777,1747528242208,-450.0,0.00013835,2]
[361376779,1747528242218,-450.0,0.00013835,2]
[361376780,1747528242227,-569.88,0.00013835,2]
[361376781,1747528242236,-450.0,0.00013835,2]
[361376782,1747528242245,-450.0,0.00013835,2]
[361376783,1747528242255,-450.0,0.00013835,2]
[361376784,1747528242263,-151.0,0.00013835,2]
[361376785,1747528242274,-454.64,0.00013835,2]
[361376786,1747528242283,-450.0,0.00013835,2]
[361376787,1747528242292,-551.96,0.00013835,2]
[361376788,1747528242302,-450.0,0.00013835,2]
[361376789,1747528242312,-450.0,0.00013835,2]
[361376790,1747528242323,-805.25,0.00013835,2]
[361376791,1747528242332,-450.0,0.00013835,2]
[361376792,1747528242341,-3871.31600083,0.000139,2]
[361376793,1747528242353,-10091.79,0.0001397,2]
[361376794,1747528242362,-160.0,0.00013971,2]
[361376795,1747528242371,-10091.79,0.00013971,2]
[361376796,1747528242381,-486.35,0.00013972,2]
[361376797,1747528242391,-450.0,0.00013972,2]
[361376798,1747528242401,-450.0,0.00013972,2]
[361376802,1747528242533,-236.90124627,0.00013972,2]
[361376803,1747528242543,-595.44,0.00013972,2]
[361376804,1747528242553,-450.0,0.00013972,2]
[361376805,1747528242562,-293.24,0.00013972,2]
[361376806,1747528242572,-152.07,0.00013972,2]
[361376807,1747528242582,-450.0,0.00013972,2]
[361376808,1747528242592,-248.49,0.00013972,2]
[361376809,1747528242601,-388.19,0.00013972,2]
[361376810,1747528242611,-588.77,0.00013972,2]
[361376811,1747528242621,-450.0,0.00013972,2]
[361376812,1747528242630,-565.62,0.00013972,2]
[361376813,1747528242640,-450.0,0.00013972,2]
[361376814,1747528242650,-450.0,0.00013972,2]
[361376815,1747528242659,-549.29,0.00013972,2]
[361376816,1747528242670,-503.77,0.00013972,2]
[361376817,1747528242680,-541.96,0.00013972,2]
[361376818,1747528242689,-450.0,0.00013972,2]
[361376819,1747528242698,-450.0,0.00013972,2]
[361376820,1747528242707,-406.01,0.00013972,2]
[361376821,1747528242716,-175.76,0.00013972,2]
[361376822,1747528242725,-450.0,0.00013972,2]
[361376823,1747528242734,-450.0,0.00013972,2]
[361376824,1747528242743,-450.0,0.00013972,2]
[361376825,1747528242752,-450.0,0.00013972,2]
[361376826,1747528242761,-1677.95,0.00013972,2]
[361376827,1747528242769,-503.45,0.00013972,2]
[361376828,1747528242778,-450.0,0.00013972,2]
[361376829,1747528242787,-450.0,0.00013972,2]
[361376830,1747528242796,-366.41,0.00013972,2]
[361376831,1747528242804,-450.0,0.00013972,2]
[361376832,1747528242814,-611.12,0.00013972,2]
[361376833,1747528242823,-183.62,0.00013972,2]
[361376834,1747528242832,-200.43,0.00013972,2]
[361376835,1747528242840,-430.81,0.00013972,2]
[361376836,1747528242849,-1324.92,0.00013972,2]
[361376837,1747528242858,-151.0,0.00013972,2]
[361376838,1747528242867,-450.0,0.00013972,2]
[361376839,1747528242876,-769.51,0.00013972,2]
[361376840,1747528242885,-507.45,0.00013972,2]
[361376841,1747528242895,-574.76,0.00013972,2]
[361376842,1747528242903,-151.0,0.00013972,2]
[361376843,1747528242913,-450.0,0.00013972,2]
[361376844,1747528242922,-1008.64,0.00013972,2]
[361376845,1747528242930,-450.0,0.00013972,2]
[361376846,1747528242940,-450.0,0.00013972,2]
[361376847,1747528242949,-784.01,0.00013972,2]
[361376848,1747528242958,-375.86,0.00013972,2]
[361376849,1747528242967,-588.66,0.00013972,2]
[361376850,1747528242976,-1515.06,0.00013972,2]
[361376851,1747528242985,-450.0,0.00013972,2]
[361376852,1747528242994,-251.912905,0.00013972,2]
[361376853,1747528243003,-450.0,0.00013972,2]
[361376854,1747528243013,-450.0,0.00013972,2]
[361376855,1747528243023,-450.0,0.00013972,2]
[361376856,1747528243033,-267.19,0.00013972,2]
[361376857,1747528243042,-450.0,0.00013972,2]
[361376858,1747528243051,-454.64,0.00013972,2]
[361376859,1747528243060,-262.9,0.00013972,2]
[361376860,1747528243069,-551.96,0.00013972,2]
[361376861,1747528243078,-479.71,0.00013972,2]
[361376862,1747528243087,-805.25,0.00013972,2]
[361376863,1747528243096,-450.0,0.00013972,2]
[361376864,1747528243105,-151.0,0.00013995,2]
[361376865,1747528243114,-207.4,0.00013995,2]
[361376866,1747528243124,-10091.79,0.00014012,2]
[361376867,1747528243134,-151.0,0.00014013,2]
[361376868,1747528243144,-12634.18372584,0.00014013,2]
[361376869,1747528243153,-160.0,0.00014013,2]
[361376870,1747528243163,-160.0,0.00014013,2]
[361376871,1747528243172,-422.46777649,0.00014013,2]
[361376872,1747528243181,-314.40244118,0.00014013,2]
[361376873,1747528243191,-212.29844686,0.00014013,2]
[361376874,1747528243200,-160.0,0.00014013,2]
[361376875,1747528243210,-998.40506679,0.00014013,2]
[361376876,1747528243220,-160.0,0.00014013,2]
[361376877,1747528243230,-160.0,0.00014013,2]
[361376878,1747528243241,-10091.79,0.00014107,2]
[361376879,1747528243250,-151.0,0.00014107,2]
[361376880,1747528243260,-10091.79,0.00014108,2]
[361376881,1747528243271,-450.0,0.00014109,2]
[361376882,1747528243282,-450.0,0.00014109,2]
[361376883,1747528243291,-450.0,0.00014109,2]
[361376885,1747528243301,-450.0,0.00014109,2]
[361376886,1747528243310,-549.29,0.00014109,2]
[361376888,1747528243320,-450.0,0.00014109,2]
[361376890,1747528243329,-450.0,0.00014109,2]
[361376892,1747528243338,-450.0,0.00014109,2]
[361376894,1747528243348,-445.95,0.00014109,2]
[361376895,1747528243357,-450.0,0.00014109,2]
[361376896,1747528243366,-450.0,0.00014109,2]
[361376897,1747528243375,-1677.95,0.00014109,2]
[361376898,1747528243384,-503.45,0.00014109,2]
[361376899,1747528243393,-450.0,0.00014109,2]
[361376900,1747528243403,-450.0,0.00014109,2]
[361376901,1747528243412,-450.0,0.00014109,2]
[361376902,1747528243421,-611.12,0.00014109,2]
[361376903,1747528243432,-1324.92,0.00014109,2]
[361376904,1747528243443,-450.0,0.00014109,2]
[361376905,1747528243454,-769.51,0.00014109,2]
[361376906,1747528243464,-507.45,0.00014109,2]
[361376907,1747528243475,-574.76,0.00014109,2]
[361376908,1747528243486,-450.0,0.00014109,2]
[361376909,1747528243496,-1008.64,0.00014109,2]
[361376910,1747528243505,-450.0,0.00014109,2]
[361376911,1747528243514,-450.0,0.00014109,2]
[361376912,1747528243523,-784.01,0.00014109,2]
[361376913,1747528243532,-588.66,0.00014109,2]
[361376914,1747528243541,-1515.06,0.00014109,2]
[361376915,1747528243550,-450.0,0.00014109,2]
[361376916,1747528243559,-450.0,0.00014109,2]
[361376917,1747528243568,-450.0,0.00014109,2]
[361376918,1747528243577,-450.0,0.00014109,2]
[361376919,1747528243586,-450.0,0.00014109,2]
[361376920,1747528243596,-454.64,0.00014109,2]
[361376921,1747528243606,-551.96,0.00014109,2]
[361376922,1747528243615,-805.25,0.00014109,2]
[361376923,1747528243624,-277.7,0.00014109,2]
[361376924,1747528243635,-151.0,0.00014245,2]
[361376925,1747528243644,-151.0,0.00014245,2]
[361376926,1747528243653,-10091.79,0.00014245,2]
[361376927,1747528243662,-450.0,0.00014246,2]
[361376928,1747528243671,-151.0,0.00014246,2]
[361376929,1747528243680,-151.0,0.00014246,2]
[361376930,1747528243689,-151.0,0.00014246,2]
[361376931,1747528243698,-151.0,0.00014246,2]
[361376932,1747528243708,-151.0,0.00014246,2]
[361376933,1747528243717,-151.0,0.00014246,2]
[361376934,1747528243726,-450.0,0.00014246,2]
[361376935,1747528243735,-298.997562,0.00014246,2]
[361376936,1747528243744,-151.0,0.00014246,2]
[361376937,1747528243754,-450.0,0.00014246,2]
[361376938,1747528243764,-450.0,0.00014246,2]
[361376939,1747528243775,-549.29,0.00014246,2]
[361376940,1747528243787,-450.0,0.00014246,2]
[361376941,1747528243796,-450.0,0.00014246,2]
[361376942,1747528243806,-450.0,0.00014246,2]
[361376943,1747528243815,-450.0,0.00014246,2]
[361376944,1747528243824,-450.0,0.00014246,2]
[361376945,1747528243833,-1677.95,0.00014246,2]
[361376946,1747528243844,-503.45,0.00014246,2]
[361376947,1747528243853,-450.0,0.00014246,2]
[361376948,1747528243862,-450.0,0.00014246,2]
[361376949,1747528243871,-235.38,0.00014246,2]
[361376950,1747528243881,-611.12,0.00014246,2]
[361376951,1747528243890,-1324.92,0.00014246,2]
[361376952,1747528243899,-450.0,0.00014246,2]
[361376953,1747528243908,-769.51,0.00014246,2]
[361376954,1747528243917,-507.45,0.00014246,2]
[361376955,1747528243926,-574.76,0.00014246,2]
[361376956,1747528243936,-450.0,0.00014246,2]
[361376957,1747528243945,-1008.64,0.00014246,2]
[361376958,1747528243954,-450.0,0.00014246,2]
[361376959,1747528243965,-393.13,0.00014246,2]
[361376960,1747528243977,-784.01,0.00014246,2]
[361376961,1747528243986,-588.66,0.00014246,2]
[361376962,1747528243996,-1515.06,0.00014246,2]
[361376963,1747528244006,-450.0,0.00014246,2]
[361376964,1747528244017,-450.0,0.00014246,2]
[361376965,1747528244027,-175.34,0.00014246,2]
[361376966,1747528244036,-450.0,0.00014246,2]
[361376967,1747528244046,-454.64,0.00014246,2]
[361376968,1747528244055,-551.96,0.00014246,2]
[361376969,1747528244064,-805.25,0.00014246,2]
[361376970,1747528244073,-151.0,0.00014313,2]
[361376971,1747528244082,-3871.31600073,0.00014314,2]
[361376972,1747528244091,-151.0,0.00014314,2]
[361376973,1747528244100,-151.0,0.00014382,2]
[361376974,1747528244110,-10091.79,0.00014382,2]
[361376975,1747528244119,-151.0,0.00014382,2]
[361376976,1747528244129,-151.0,0.00014383,2]
[361376977,1747528244139,-450.0,0.00014383,2]
[361376978,1747528244148,-450.0,0.00014383,2]
[361376979,1747528244159,-250.39,0.00014383,2]
[361376980,1747528244169,-450.0,0.00014383,2]
[361376981,1747528244178,-549.29,0.00014383,2]
[361376982,1747528244187,-450.0,0.00014383,2]
[361376983,1747528244196,-450.0,0.00014383,2]
[361376984,1747528244205,-450.0,0.00014383,2]
[361376985,1747528244215,-450.0,0.00014383,2]
[361376986,1747528244224,-450.0,0.00014383,2]
[361376987,1747528244234,-1677.95,0.00014383,2]
[361376988,1747528244244,-503.45,0.00014383,2]
[361376989,1747528244254,-450.0,0.00014383,2]
[361376990,1747528244263,-450.0,0.00014383,2]
[361376991,1747528244274,-611.12,0.00014383,2]
[361376992,1747528244294,-1324.92,0.00014383,2]
[361376993,1747528244305,-450.0,0.00014383,2]